[Event "Konyaalti Open-A 2019"]
[Site "Konyaalti"]
[Date "2019.11.22"]
[Round "6.3"]
[White "Lortkipanidze, Nodar"]
[Black "Haznedaroglu, Kivanc"]
[Result "1-0"]
[ECO "B22"]
[WhiteElo "2377"]
[BlackElo "2461"]
[Annotator "ChessBase"]
[PlyCount "99"]
[EventDate "2019.11.20"]
[EventType "swiss"]
[EventCountry "TUR"]
[SourceTitle "playchess.com"]
[Source "ChessBase"]
[SourceQuality "1"]
[TimeControl "5400+30"]

1. e4 {[%emt 0:00:30]} c5 {[%emt 0:03:30]} 2. Nf3 {[%emt 0:00:00]} e6 {[%emt 0:00:30]} 3. c3 {[%emt 0:00:00]} Nf6 {[%emt 0:00:30]} 4. e5 {[%emt 0:00:30]} Nd5 {[%emt 0:00:00]} 5. d4 {[%emt 0:00:00]} cxd4 {[%emt 0:00:00]} 6. cxd4 {[%emt 0:00:00]} d6 {[%emt 0:00:00]} 7. a3 {[%emt 0:00:00]} Bd7 {[%emt 0:00:00]} 8. Bd3 {[%emt 0:00:00]} Bc6 {[%emt 0:00:30]} 9. O-O {[%emt 0:00:30]} Nd7 {[%emt 0:00:00]} 10. b4 {[%emt 0:01:30]} a6 {[%emt 0:00:00]} 11. Nbd2 {[%emt 0:02:30]} dxe5 {[%emt 0:02:30]} 12. dxe5 {[%emt 0:00:30]} Be7 {[%emt 0:03:30]} 13. Re1 {[%emt 0:04:30]} Rc8 {[%emt 0:00:30]} 14. Ne4 {[%emt 0:00:30]} O-O {[%emt 0:05:30]} 15. Qd2 {[%emt 0:12:30]} N7b6 {[%emt 0:08:30]} 16. Nd4 {[%emt 0:04:30]} Ba4 {[%emt 0:08:30]} 17. Qe2 {[%emt 0:04:30]} Rxc1 {[%emt 0:08:30]} 18. Raxc1 {[%emt 0:00:30]} Nf4 {[%emt 0:00:30]} 19. Qe3 {[%emt 0:01:30]} Nbd5 {[%emt 0:00:30]} 20. Qf3 {[%emt 0:02:30]} Ng6 {[%emt 0:04:30]} 21. Nc5 {[%emt 0:10:30]} Bxc5 {[%emt 0:00:30]} 22. Rxc5 {[%emt 0:00:00]} Qg5 {[%emt 0:18:30]} 23. Bxg6 {[%emt 0:05:00]} hxg6 {[%emt 0:00:30]} 24. Qe4 {[%emt 0:03:30]} Rd8 {[%emt 0:02:30]} 25. Rec1 {[%emt 0:02:30]} Bd7 {[%emt 0:01:30]} 26. h4 {[%emt 0:00:30]} Qe7 {[%emt 0:00:00]} 27. g3 {[%emt 0:00:30]} Qe8 {[%emt 0:01:00]} 28. Kg2 {[%emt 0:06:30]} Ra8 {[%emt 0:02:30]} 29. Qc2 {[%emt 0:11:30]} Qb8 {[%emt 0:02:30]} 30. Rxd5 {[%emt 0:01:30]} exd5 {[%emt 0:00:30]} 31. Qc7 {[%emt 0:00:00]} Bc6 {[%emt 0:15:33]} 32. Qxb8+ {[%emt 0:07:18]} Rxb8 {[%emt 0:00:02]} 33. Nxc6 {[%emt 0:00:12]} bxc6 {[%emt 0:00:37]} 34. Rxc6 {[%emt 0:00:30]} a5 {[%emt 0:00:30]} 35. bxa5 {[%emt 0:00:39]} Rb5 {[%emt 0:00:07]} 36. Rc8+ {[%emt 0:00:36]} Kh7 {[%emt 0:00:30]} 37. Rc7 {[%emt 0:00:35]} d4 {[%emt 0:00:30]} 38. Rxf7 {[%emt 0:00:37]} Rxe5 {[%emt 0:00:30]} 39. a6 {[%emt 0:00:36]} Ra5 {[%emt 0:00:30]} 40. a7 {[%emt 0:00:37]} Rxa3 {[%emt 0:00:30]} 41. Rd7 {[%emt 0:00:45]} g5 {[%emt 0:00:30]} 42. hxg5 {[%emt 0:00:36]} Kg6 {[%emt 0:00:30]} 43. Kh3 {[%emt 0:00:40]} Kxg5 {[%emt 0:00:30]} 44. Rxg7+ {[%emt 0:00:41]} Kf5 {[%emt 0:00:30]} 45. Rd7 {[%emt 0:00:38]} Ke4 {[%emt 0:00:30]} 46. Kh4 {[%emt 0:01:01]} d3 {[%emt 0:01:51]} 47. g4 {[%emt 0:00:55]} Kf4 {[%emt 0:03:51]} 48. Rd4+ {[%emt 0:00:55]} Ke5 {[%emt 0:00:59]} 49. Rxd3 {[%emt 0:00:09]} Rxa7 {[%emt 0:00:13]} 50. Rf3 {[%emt 0:00:07]} 1-0

[Event "Konyaalti Open-A 2019"]
[Site "Konyaalti"]
[Date "2019.11.21"]
[Round "6.5"]
[White "Nigalidze, Gaioz"]
[Black "Gadimbayli, Abdulla"]
[Result "1/2-1/2"]
[ECO "D08"]
[WhiteElo "2472"]
[BlackElo "2447"]
[Annotator "ChessBase"]
[PlyCount "125"]
[EventDate "2019.11.20"]
[EventType "swiss"]
[EventCountry "TUR"]
[SourceTitle "playchess.com"]
[Source "ChessBase"]
[SourceQuality "1"]
[TimeControl "5400+30"]

1. d4 {[%emt 0:00:30]} d5 {[%emt 0:13:30]} 2. c4 {[%emt 0:00:00]} e5 {[%emt 0:00:30]} 3. dxe5 {[%emt 0:00:00]} d4 {[%emt 0:00:30]} 4. Nf3 {[%emt 0:00:30]} Nc6 {[%emt 0:00:00]} 5. a3 {[%emt 0:00:30]} Nge7 {[%emt 0:00:00]} 6. b4 {[%emt 0:10:30]} Ng6 {[%emt 0:00:30]} 7. Bb2 {[%emt 0:05:30]} a5 {[%emt 0:00:30]} 8. b5 {[%emt 0:00:30]} Ncxe5 {[%emt 0:00:30]} 9. Nxe5 {[%emt 0:01:30]} Nxe5 {[%emt 0:00:00]} 10. Qxd4 {[%emt 0:04:30]} Qxd4 {[%emt 0:00:00]} 11. Bxd4 {[%emt 0:00:30]} Nxc4 {[%emt 0:00:30]} 12. e3 {[%emt 0:00:00]} Be6 {[%emt 0:10:30]} 13. Be2 {[%emt 0:18:00]} a4 {[%emt 0:20:30]} 14. O-O {[%emt 0:15:30]} Na5 {[%emt 0:05:30]} 15. Nd2 {[%emt 0:01:30]} f6 {[%emt 0:00:30]} 16. Bh5+ {[%emt 0:12:30]} Kd7 {[%emt 0:03:30]} 17. Bf3 {[%emt 0:05:30]} Bd6 {[%emt 0:07:30]} 18. Ne4 {[%emt 0:01:50]} Bc4 {[%emt 0:08:30]} 19. Rfd1 {[%emt 0:04:16]} Nb3 {[%emt 0:09:36]} 20. Nxd6 {[%emt 0:00:55]} cxd6 {[%emt 0:00:24]} 21. Rab1 {[%emt 0:00:26]} Bxb5 {[%emt 0:00:22]} 22. Bxb7 {[%emt 0:00:49]} Be2 {[%emt 0:00:43]} 23. Bxa8 {[%emt 0:06:19]} Rxa8 {[%emt 0:00:09]} 24. Re1 {[%emt 0:00:32]} Bd3 {[%emt 0:01:51]} 25. Rb2 {[%emt 0:00:06]} Rc8 {[%emt 0:00:00]} 26. f3 {[%emt 0:01:14]} Ke6 {[%emt 0:00:30]} 27. Bb6 {[%emt 0:03:29]} Rc6 {[%emt 0:02:47]} 28. Ba7 {[%emt 0:00:07]} Rc3 {[%emt 0:03:06]} 29. e4 {[%emt 0:01:29]} Na5 {[%emt 0:02:04]} 30. Rd1 {[%emt 0:01:05]} Nb3 {[%emt 0:02:42]} 31. Bf2 {[%emt 0:01:14]} Bc2 {[%emt 0:00:14]} 32. Rd5 {[%emt 0:01:07]} Bxe4 {[%emt 0:00:13]} 33. Rd1 {[%emt 0:01:13]} Bd3 {[%emt 0:01:46]} 34. Re1+ {[%emt 0:01:09]} Kf7 {[%emt 0:02:45]} 35. Bg3 {[%emt 0:00:42]} d5 {[%emt 0:00:16]} 36. Bd6 {[%emt 0:00:48]} d4 {[%emt 0:00:34]} 37. Re7+ {[%emt 0:00:48]} Kg6 {[%emt 0:00:06]} 38. Bb4 {[%emt 0:00:11]} Rc1+ {[%emt 0:02:48]} 39. Kf2 {[%emt 0:00:06]} Bc2 {[%emt 0:01:46]} 40. Rc7 {[%emt 0:01:43]} d3 {[%emt 0:00:09]} 41. Ke3 {[%emt 0:00:19]} h5 {[%emt 0:00:58]} 42. h4 {[%emt 0:00:48]} Rh1 {[%emt 0:01:35]} 43. Rc4 {[%emt 0:00:39]} Rh2 {[%emt 0:00:28]} 44. Kf2 {[%emt 0:00:22]} Rh1 {[%emt 0:00:09]} 45. Kg3 {[%emt 0:00:38]} Rc1 {[%emt 0:00:52]} 46. Rc7 {[%emt 0:00:18]} Kh7 {[%emt 0:00:31]} 47. Rd7 {[%emt 0:00:43]} Kg6 {[%emt 0:00:31]} 48. Kf4 {[%emt 0:00:27]} Rh1 {[%emt 0:00:07]} 49. Kg3 {[%emt 0:00:33]} Rc1 {[%emt 0:00:40]} 50. Kf2 {[%emt 0:00:26]} Rh1 {[%emt 0:00:23]} 51. Bf8 {[%emt 0:00:30]} Rxh4 {[%emt 0:00:30]} 52. Rxg7+ {[%emt 0:00:23]} Kf5 {[%emt 0:00:01]} 53. Rd7 {[%emt 0:00:37]} Rc4 {[%emt 0:01:09]} 54. Bb4 {[%emt 0:00:33]} Rc6 {[%emt 0:00:41]} 55. Rd5+ {[%emt 0:00:25]} Kg6 {[%emt 0:00:14]} 56. Rd7 {[%emt 0:00:37]} Re6 {[%emt 0:00:37]} 57. Kg3 {[%emt 0:00:25]} Re2 {[%emt 0:00:40]} 58. Kf4 {[%emt 0:00:01]} Re8 {[%emt 0:00:28]} 59. Rd6 {[%emt 0:00:41]} Rc8 {[%emt 0:00:13]} 60. Ke3 {[%emt 0:00:33]} Re8+ {[%emt 0:00:09]} 61. Kf4 {[%emt 0:00:23]} Rc8 {[%emt 0:00:00]} 62. Be1 {[%emt 0:00:40]} Rc7 {[%emt 0:00:58]} 63. Bb4 {[%emt 0:00:45]} 1/2-1/2

[Event "Konyaalti Open-A 2019"]
[Site "Konyaalti"]
[Date "2019.11.21"]
[Round "6.6"]
[White "Mammadov, Zaur"]
[Black "Burcu, Cagatay"]
[Result "1-0"]
[ECO "E06"]
[WhiteElo "2421"]
[BlackElo "2331"]
[Annotator "ChessBase"]
[PlyCount "61"]
[EventDate "2019.11.20"]
[EventType "swiss"]
[EventCountry "TUR"]
[SourceTitle "playchess.com"]
[Source "ChessBase"]
[SourceQuality "1"]
[TimeControl "5400+30"]

1. Nf3 {[%emt 0:03:30]} d5 {[%emt 0:01:30]} 2. g3 {[%emt 0:00:30]} Nf6 {[%emt 0:00:00]} 3. Bg2 {[%emt 0:00:30]} Bf5 {[%emt 0:00:00]} 4. c4 {[%emt 0:00:00]} c6 {[%emt 0:00:30]} 5. O-O {[%emt 0:00:00]} e6 {[%emt 0:00:30]} 6. cxd5 {[%emt 0:03:30]} exd5 {[%emt 0:02:30]} 7. d3 {[%emt 0:00:30]} Bc5 {[%emt 0:03:30]} 8. d4 {[%emt 0:00:30]} Be7 {[%emt 0:01:30]} 9. Nc3 {[%emt 0:00:00]} O-O {[%emt 0:01:30]} 10. Nh4 {[%emt 0:03:00]} Bg6 {[%emt 0:05:30]} 11. f3 {[%emt 0:00:30]} Na6 {[%emt 0:06:30]} 12. Nxg6 {[%emt 0:06:30]} hxg6 {[%emt 0:00:00]} 13. e4 {[%emt 0:00:30]} dxe4 {[%emt 0:04:00]} 14. fxe4 {[%emt 0:01:30]} Nc7 {[%emt 0:01:30]} 15. Be3 {[%emt 0:02:30]} Nd7 {[%emt 0:09:30]} 16. Qb3 {[%emt 0:03:30]} c5 {[%emt 0:08:30]} 17. Rad1 {[%emt 0:06:30]} cxd4 {[%emt 0:28:30]} 18. Bxd4 {[%emt 0:04:30]} Ne6 {[%emt 0:00:30]} 19. Bf2 {[%emt 0:02:30]} Qc8 {[%emt 0:05:10]} 20. Nd5 {[%emt 0:00:30]} Bd8 {[%emt 0:00:45]} 21. Rc1 {[%emt 0:09:30]} Qb8 {[%emt 0:00:02]} 22. Bh3 {[%emt 0:00:30]} Re8 {[%emt 0:01:47]} 23. Be3 {[%emt 0:07:30]} a5 {[%emt 0:04:42]} 24. Qb5 {[%emt 0:04:30]} Nf6 {[%emt 0:04:33]} 25. e5 {[%emt 0:00:30]} Nc7 {[%emt 0:01:08]} 26. Rxc7 {[%emt 0:08:30]} Rxe5 {[%emt 0:04:31]} 27. Rc8 {[%emt 0:01:30]} Qxc8 {[%emt 0:04:16]} 28. Bxc8 {[%emt 0:00:00]} Rxc8 {[%emt 0:00:35]} 29. Qxb7 {[%emt 0:00:00]} Rc2 {[%emt 0:00:21]} 30. Nxf6+ {[%emt 0:00:30]} Bxf6 {[%emt 0:00:08]} 31. Bd4 {[%emt 0:00:30]} 1-0

[Event "Konyaalti Open-A 2019"]
[Site "Konyaalti"]
[Date "2019.11.21"]
[Round "6.7"]
[White "Guliev, Sarhan"]
[Black "Mirzoev, Azer"]
[Result "1/2-1/2"]
[ECO "D36"]
[WhiteElo "2311"]
[BlackElo "2472"]
[Annotator "ChessBase"]
[PlyCount "26"]
[EventDate "2019.11.20"]
[EventType "swiss"]
[EventCountry "TUR"]
[SourceTitle "playchess.com"]
[Source "ChessBase"]
[SourceQuality "1"]
[TimeControl "5400+30"]

1. d4 {[%emt 0:06:30]} d5 {[%emt 0:08:30]} 2. c4 {[%emt 0:00:30]} e6 {[%emt 0:00:00]} 3. cxd5 {[%emt 0:00:00]} exd5 {[%emt 0:00:00]} 4. Nc3 {[%emt 0:00:00]} Nf6 {[%emt 0:00:30]} 5. Bg5 {[%emt 0:00:30]} Be7 {[%emt 0:00:00]} 6. e3 {[%emt 0:00:00]} c6 {[%emt 0:00:00]} 7. Nf3 {[%emt 0:00:00]} O-O {[%emt 0:00:00]} 8. Bd3 {[%emt 0:00:30]} Nbd7 {[%emt 0:00:00]} 9. O-O {[%emt 0:00:00]} Re8 {[%emt 0:00:30]} 10. Qc2 {[%emt 0:00:00]} Nf8 {[%emt 0:00:00]} 11. Ne5 {[%emt 0:00:30]} Ng4 {[%emt 0:00:00]} 12. Bxe7 {[%emt 0:00:00]} Qxe7 {[%emt 0:00:00]} 13. Nxg4 {[%emt 0:00:00]} Bxg4 {[%emt 0:00:00]} 1/2-1/2

[Event "Konyaalti Open-A 2019"]
[Site "Konyaalti"]
[Date "2019.11.21"]
[Round "6.8"]
[White "Ozen, Deniz"]
[Black "Zarinfam, Arsalan"]
[Result "1-0"]
[ECO "B52"]
[WhiteElo "2422"]
[BlackElo "2171"]
[Annotator "ChessBase"]
[PlyCount "57"]
[EventDate "2019.11.20"]
[EventType "swiss"]
[EventCountry "TUR"]
[SourceTitle "playchess.com"]
[Source "ChessBase"]
[SourceQuality "1"]
[TimeControl "5400+30"]

1. e4 {[%emt 0:06:30]} c5 {[%emt 0:00:30]} 2. Nf3 {[%emt 0:00:30]} d6 {[%emt 0:00:00]} 3. Bb5+ {[%emt 0:00:30]} Bd7 {[%emt 0:00:00]} 4. Bxd7+ {[%emt 0:00:30]} Qxd7 {[%emt 0:00:00]} 5. O-O {[%emt 0:00:00]} Nf6 {[%emt 0:00:00]} 6. Qe2 {[%emt 0:00:00]} Nc6 {[%emt 0:00:30]} 7. Rd1 {[%emt 0:00:30]} g5 {[%emt 0:00:30]} 8. c3 {[%emt 0:00:30]} g4 {[%emt 0:01:30]} 9. Nh4 {[%emt 0:00:00]} Qe6 {[%emt 0:00:00]} 10. d3 {[%emt 0:00:00]} d5 {[%emt 0:00:00]} 11. Bg5 {[%emt 0:02:30]} O-O-O {[%emt 0:00:30]} 12. Nd2 {[%emt 0:04:30]} Rg8 {[%emt 0:00:30]} 13. Bf4 {[%emt 0:05:30]} Nh5 {[%emt 0:00:00]} 14. Bg3 {[%emt 0:00:30]} Nxg3 {[%emt 0:01:00]} 15. hxg3 {[%emt 0:00:30]} Qe5 {[%emt 0:01:30]} 16. Rac1 {[%emt 0:18:30]} Kb8 {[%emt 0:04:30]} 17. b4 {[%emt 0:17:30]} cxb4 {[%emt 0:22:30]} 18. d4 {[%emt 0:00:00]} Qe6 {[%emt 0:07:30]} 19. Nb3 {[%emt 0:02:00]} Bh6 {[%emt 0:32:30]} 20. Nc5 {[%emt 0:05:30]} Qc8 {[%emt 0:00:30]} 21. Rc2 {[%emt 0:07:30]} dxe4 {[%emt 0:07:11]} 22. d5 {[%emt 0:04:30]} Rg5 {[%emt 0:07:41]} 23. cxb4 {[%emt 0:03:59]} Nxb4 {[%emt 0:04:08]} 24. Na6+ {[%emt 0:00:34]} Nxa6 {[%emt 0:00:12]} 25. Rxc8+ {[%emt 0:00:04]} Rxc8 {[%emt 0:02:06]} 26. Qxe4 {[%emt 0:00:23]} Bg7 {[%emt 0:04:41]} 27. Qxe7 {[%emt 0:01:08]} h6 {[%emt 0:01:07]} 28. d6 {[%emt 0:00:52]} Bf8 {[%emt 0:02:12]} 29. Qf6 {[%emt 0:00:22]} 1-0

[Event "Konyaalti Open-A 2019"]
[Site "Konyaalti"]
[Date "2019.11.21"]
[Round "6.9"]
[White "Kiremitciyan, Ari"]
[Black "Noroozi, Omid"]
[Result "1-0"]
[ECO "A13"]
[WhiteElo "2264"]
[BlackElo "2345"]
[Annotator "ChessBase"]
[PlyCount "83"]
[EventDate "2019.11.20"]
[EventType "swiss"]
[EventCountry "TUR"]
[SourceTitle "playchess.com"]
[Source "ChessBase"]
[SourceQuality "1"]
[TimeControl "5400+30"]

1. Nf3 {[%emt 0:02:30]} Nf6 {[%emt 0:00:30]} 2. c4 {[%emt 0:00:30]} e6 {[%emt 0:00:00]} 3. Nc3 {[%emt 0:01:30]} d5 {[%emt 0:00:00]} 4. e3 {[%emt 0:02:30]} Be7 {[%emt 0:01:30]} 5. b3 {[%emt 0:00:30]} c5 {[%emt 0:01:30]} 6. cxd5 {[%emt 0:01:30]} exd5 {[%emt 0:00:30]} 7. Bb2 {[%emt 0:03:30]} O-O {[%emt 0:00:30]} 8. d4 {[%emt 0:02:30]} Nc6 {[%emt 0:10:30]} 9. Be2 {[%emt 0:02:30]} cxd4 {[%emt 0:10:30]} 10. Nxd4 {[%emt 0:00:30]} Qb6 {[%emt 0:00:00]} 11. Nxc6 {[%emt 0:03:30]} bxc6 {[%emt 0:00:00]} 12. O-O {[%emt 0:00:30]} Be6 {[%emt 0:09:30]} 13. Na4 {[%emt 0:02:30]} Qa5 {[%emt 0:02:30]} 14. Rc1 {[%emt 0:02:30]} Rac8 {[%emt 0:00:30]} 15. Bc3 {[%emt 0:01:30]} Qc7 {[%emt 0:10:30]} 16. Bd4 {[%emt 0:12:30]} Ba3 {[%emt 0:12:30]} 17. Rc2 {[%emt 0:08:30]} Nd7 {[%emt 0:07:30]} 18. Qd3 {[%emt 0:26:30]} Bd6 {[%emt 0:05:30]} 19. h3 {[%emt 0:03:30]} c5 {[%emt 0:01:30]} 20. Nxc5 {[%emt 0:03:40]} Nxc5 {[%emt 0:01:30]} 21. Bxc5 {[%emt 0:00:03]} Bxc5 {[%emt 0:00:30]} 22. b4 {[%emt 0:00:08]} Qb6 {[%emt 0:00:30]} 23. bxc5 {[%emt 0:00:29]} Rxc5 {[%emt 0:18:03]} 24. Rxc5 {[%emt 0:07:45]} Qxc5 {[%emt 0:00:30]} 25. Rd1 {[%emt 0:00:38]} Rb8 {[%emt 0:00:30]} 26. Bf3 {[%emt 0:00:37]} Rb5 {[%emt 0:00:30]} 27. a4 {[%emt 0:00:35]} Ra5 {[%emt 0:00:30]} 28. e4 {[%emt 0:00:36]} Bd7 {[%emt 0:00:30]} 29. exd5 {[%emt 0:00:36]} Qd6 {[%emt 0:00:30]} 30. Ra1 {[%emt 0:00:37]} g6 {[%emt 0:00:31]} 31. Qd4 {[%emt 0:03:18]} h5 {[%emt 0:00:04]} 32. h4 {[%emt 0:00:34]} Kh7 {[%emt 0:02:45]} 33. g3 {[%emt 0:04:28]} Kg8 {[%emt 0:03:00]} 34. Bg2 {[%emt 0:02:00]} Qa6 {[%emt 0:00:59]} 35. Rb1 {[%emt 0:00:53]} Qd6 {[%emt 0:00:18]} 36. Rb7 {[%emt 0:00:56]} Rxa4 {[%emt 0:00:41]} 37. Qb2 {[%emt 0:00:01]} Kh7 {[%emt 0:00:38]} 38. Rb8 {[%emt 0:00:11]} f6 {[%emt 0:00:05]} 39. Rd8 {[%emt 0:00:44]} Rc4 {[%emt 0:00:55]} 40. Bh3 {[%emt 0:00:31]} Rc7 {[%emt 0:00:15]} 41. Kh2 {[%emt 0:00:40]} Qe7 {[%emt 0:01:16]} 42. Qb8 {[%emt 0:00:02]} 1-0

[Event "Konyaalti Open-A 2019"]
[Site "Konyaalti"]
[Date "2019.11.21"]
[Round "6.10"]
[White "Garayev, Kanan"]
[Black "Kirilmaz, Emre"]
[Result "1-0"]
[ECO "E04"]
[WhiteElo "2338"]
[BlackElo "2141"]
[Annotator "ChessBase"]
[PlyCount "101"]
[EventDate "2019.11.20"]
[EventType "swiss"]
[EventCountry "TUR"]
[SourceTitle "playchess.com"]
[Source "ChessBase"]
[SourceQuality "1"]
[TimeControl "5400+30"]

1. d4 {[%emt 0:13:30]} d5 {[%emt 0:00:30]} 2. c4 {[%emt 0:00:30]} e6 {[%emt 0:00:00]} 3. Nf3 {[%emt 0:01:30]} Nf6 {[%emt 0:00:00]} 4. g3 {[%emt 0:02:30]} dxc4 {[%emt 0:03:30]} 5. Bg2 {[%emt 0:03:30]} c6 {[%emt 0:00:30]} 6. O-O {[%emt 0:05:30]} b5 {[%emt 0:00:30]} 7. Ne5 {[%emt 0:02:30]} Bb7 {[%emt 0:02:30]} 8. a4 {[%emt 0:03:30]} a6 {[%emt 0:00:30]} 9. Nc3 {[%emt 0:03:30]} Nd5 {[%emt 0:01:30]} 10. e4 {[%emt 0:03:30]} Nxc3 {[%emt 0:00:30]} 11. bxc3 {[%emt 0:00:00]} Nd7 {[%emt 0:01:30]} 12. f4 {[%emt 0:01:00]} Be7 {[%emt 0:04:30]} 13. Be3 {[%emt 0:10:30]} O-O {[%emt 0:00:30]} 14. Nxd7 {[%emt 0:06:30]} Qxd7 {[%emt 0:00:30]} 15. e5 {[%emt 0:00:30]} a5 {[%emt 0:09:30]} 16. Qc2 {[%emt 0:03:30]} b4 {[%emt 0:04:30]} 17. cxb4 {[%emt 0:06:30]} axb4 {[%emt 0:00:00]} 18. Be4 {[%emt 0:10:47]} b3 {[%emt 0:05:00]} 19. Qxc4 {[%emt 0:02:29]} Ba6 {[%emt 0:00:00]} 20. Qxb3 {[%emt 0:00:23]} Bxf1 {[%emt 0:00:00]} 21. Rxf1 {[%emt 0:01:21]} Rac8 {[%emt 0:09:30]} 22. f5 {[%emt 0:02:21]} c5 {[%emt 0:00:30]} 23. f6 {[%emt 0:01:40]} gxf6 {[%emt 0:07:30]} 24. exf6 {[%emt 0:00:37]} Bxf6 {[%emt 0:04:30]} 25. Rxf6 {[%emt 0:00:26]} Kg7 {[%emt 0:01:30]} 26. Rf4 {[%emt 0:04:27]} cxd4 {[%emt 0:01:30]} 27. Qd3 {[%emt 0:02:59]} e5 {[%emt 0:07:30]} 28. Bf5 {[%emt 0:01:05]} Qd6 {[%emt 0:04:30]} 29. Rg4+ {[%emt 0:01:18]} Kh8 {[%emt 0:00:30]} 30. Bxc8 {[%emt 0:00:14]} Rxc8 {[%emt 0:00:00]} 31. Qf5 {[%emt 0:00:27]} Rg8 {[%emt 0:01:00]} 32. Rh4 {[%emt 0:03:51]} Rg6 {[%emt 0:02:30]} 33. Qxf7 {[%emt 0:00:36]} Rg7 {[%emt 0:00:30]} 34. Qe8+ {[%emt 0:00:03]} Rg8 {[%emt 0:00:30]} 35. Qxe5+ {[%emt 0:00:22]} Qxe5 {[%emt 0:00:00]} 36. Bxd4 {[%emt 0:00:02]} Re8 {[%emt 0:01:00]} 37. Bxe5+ {[%emt 0:00:05]} Rxe5 {[%emt 0:00:00]} 38. Kf2 {[%emt 0:00:31]} Kg7 {[%emt 0:01:00]} 39. Kf3 {[%emt 0:00:14]} Rc5 {[%emt 0:00:00]} 40. Rb4 {[%emt 0:00:43]} Rc2 {[%emt 0:00:00]} 41. h4 {[%emt 0:00:09]} Ra2 {[%emt 0:00:30]} 42. Ke4 {[%emt 0:00:08]} Kf6 {[%emt 0:01:30]} 43. Rb6+ {[%emt 0:00:17]} Kg7 {[%emt 0:00:00]} 44. Rb4 {[%emt 0:00:01]} Kf6 {[%emt 0:00:00]} 45. Kd5 {[%emt 0:00:03]} h5 {[%emt 0:00:30]} 46. Kc5 {[%emt 0:01:47]} Kf5 {[%emt 0:00:30]} 47. Kb6 {[%emt 0:00:30]} Ra3 {[%emt 0:00:00]} 48. Rb5+ {[%emt 0:00:12]} Ke6 {[%emt 0:00:00]} 49. a5 {[%emt 0:00:23]} Kd7 {[%emt 0:00:30]} 50. Kb7 {[%emt 0:00:33]} Rxg3 {[%emt 0:00:30]} 51. a6 {[%emt 0:00:05]} 1-0

[Event "Konyaalti Open-A 2019"]
[Site "Konyaalti"]
[Date "2019.11.22"]
[Round "7.1"]
[White "Solozhenkin, Evgeniy"]
[Black "Shanava, Konstantine"]
[Result "1/2-1/2"]
[ECO "B08"]
[WhiteElo "2387"]
[BlackElo "2491"]
[Annotator "ChessBase"]
[PlyCount "84"]
[EventDate "2019.11.20"]
[EventType "swiss"]
[EventCountry "TUR"]
[SourceTitle "playchess.com"]
[Source "ChessBase"]
[SourceQuality "1"]
[TimeControl "5400+30"]

1. d4 {[%emt 0:01:30]} g6 {[%emt 0:10:30]} 2. e4 {[%emt 0:00:00]} Bg7 {[%emt 0:00:00]} 3. Nf3 {[%emt 0:01:00]} d6 {[%emt 0:01:00]} 4. Be2 {[%emt 0:01:30]} Nf6 {[%emt 0:00:30]} 5. Nc3 {[%emt 0:00:30]} O-O {[%emt 0:00:30]} 6. O-O {[%emt 0:00:30]} Nc6 {[%emt 0:00:30]} 7. d5 {[%emt 0:07:30]} Nb8 {[%emt 0:01:30]} 8. h3 {[%emt 0:00:00]} c6 {[%emt 0:00:30]} 9. a4 {[%emt 0:04:00]} Nbd7 {[%emt 0:17:30]} 10. a5 {[%emt 0:09:30]} Qc7 {[%emt 0:05:30]} 11. Be3 {[%emt 0:01:30]} Nc5 {[%emt 0:01:30]} 12. Nd2 {[%emt 0:13:30]} Rd8 {[%emt 0:13:30]} 13. Ra3 {[%emt 0:00:30]} Bd7 {[%emt 0:02:30]} 14. b4 {[%emt 0:03:30]} Na6 {[%emt 0:17:30]} 15. dxc6 {[%emt 0:00:30]} Be6 {[%emt 0:01:30]} 16. cxb7 {[%emt 0:04:30]} Qxb7 {[%emt 0:00:30]} 17. b5 {[%emt 0:00:30]} Nc5 {[%emt 0:00:00]} 18. e5 {[%emt 0:08:30]} Nd5 {[%emt 0:16:42]} 19. a6 {[%emt 0:15:30]} Qc7 {[%emt 0:00:08]} 20. Nxd5 {[%emt 0:00:30]} Bxd5 {[%emt 0:00:02]} 21. c4 {[%emt 0:00:30]} Be6 {[%emt 0:00:20]} 22. exd6 {[%emt 0:00:30]} Qxd6 {[%emt 0:01:02]} 23. Qc1 {[%emt 0:00:30]} Rac8 {[%emt 0:03:08]} 24. Nf3 {[%emt 0:03:30]} Qc7 {[%emt 0:00:36]} 25. Bf4 {[%emt 0:01:30]} Qb6 {[%emt 0:00:10]} 26. Ne5 {[%emt 0:00:30]} g5 {[%emt 0:01:34]} 27. Bh2 {[%emt 0:12:01]} Ne4 {[%emt 0:00:04]} 28. Nc6 {[%emt 0:00:10]} Rxc6 {[%emt 0:00:17]} 29. bxc6 {[%emt 0:00:02]} Bb2 {[%emt 0:00:59]} 30. Qe3 {[%emt 0:00:32]} Bxa3 {[%emt 0:00:32]} 31. Qxa3 {[%emt 0:01:50]} Rd2 {[%emt 0:01:09]} 32. Qxe7 {[%emt 0:05:44]} Rxe2 {[%emt 0:00:15]} 33. Be5 {[%emt 0:00:03]} Qc5 {[%emt 0:00:41]} 34. Qd8+ {[%emt 0:00:32]} Qf8 {[%emt 0:00:08]} 35. Qd3 {[%emt 0:01:06]} Rxf2 {[%emt 0:01:06]} 36. Qxe4 {[%emt 0:00:00]} Rxf1+ {[%emt 0:00:17]} 37. Kxf1 {[%emt 0:00:21]} Qc5 {[%emt 0:00:02]} 38. c7 {[%emt 0:01:12]} Qxc4+ {[%emt 0:00:34]} 39. Qxc4 {[%emt 0:00:04]} Bxc4+ {[%emt 0:00:04]} 40. Kf2 {[%emt 0:00:05]} Bxa6 {[%emt 0:00:04]} 41. Bd4 {[%emt 0:00:06]} f5 {[%emt 0:02:07]} 42. Bxa7 {[%emt 0:00:34]} Kf7 {[%emt 0:00:05]} 1/2-1/2